bitfinex/quotes_SOLUSD_20250821
["timestamp","ask_amount","ask_price","bid_price","bid_amount"]
[1755766764773,85.74641951,186.1,186.09,0.03]
[1755766765134,81.23559401,186.1,186.09,0.03]
[1755766765461,85.72641951,186.1,186.09,0.03]
[1755766765669,43.38641951,186.1,186.09,0.03]
[1755766765889,85.02641951,186.1,186.09,0.03]
[1755766766052,85.72641951,186.1,186.09,0.03]
[1755766766872,87.18153451,186.1,186.09,0.03]
[1755766767075,85.02641951,186.1,186.09,0.03]
[1755766767660,85.72641951,186.1,186.09,0.03]
[1755766768563,81.93559401,186.1,186.09,0.03]
[1755766768744,85.72641951,186.1,186.09,0.03]
[1755766769964,44.08641951,186.1,186.09,0.03]
[1755766770150,85.72641951,186.1,186.09,0.03]
[1755766770350,44.08641951,186.1,186.09,0.03]
[1755766770662,85.72641951,186.1,186.09,0.03]
[1755766770866,86.01074265,186.1,186.09,0.03]
[1755766771062,88.16585665,186.1,186.09,0.03]
[1755766771970,0.28432314,186.09,186.08,0.03]
[1755766772171,17.67074265,186.09,186.08,0.03]
[1755766772478,18.37074265,186.09,186.08,0.03]
[1755766774485,14.57991715,186.09,186.08,0.03]
[1755766774779,75.47671365,186.09,186.08,0.03]
[1755766775159,76.17671365,186.09,186.08,0.03]
[1755766778166,34.53671365,186.09,186.08,0.03]
[1755766778370,76.17671365,186.09,186.08,0.03]
[1755766778672,75.89239051,186.09,186.08,0.03]
[1755766778876,18.08641951,186.09,186.08,0.03]
[1755766779181,61.18164951,186.09,186.08,0.03]
[1755766779390,61.88164951,186.09,186.08,0.03]
[1755766782677,20.24164951,186.09,186.08,0.03]
[1755766782877,61.88164951,186.09,186.08,0.03]
[1755766784379,59.72641951,186.09,186.08,0.03]
[1755766785482,18.08641951,186.09,186.08,0.03]
[1755766785788,59.72641951,186.09,186.08,0.03]
[1755766786796,18.08641951,186.09,186.08,0.03]
[1755766786968,59.72641951,186.09,186.08,0.03]
[1755766787171,18.08641951,186.09,186.08,0.03]
[1755766787378,59.72641951,186.09,186.08,0.03]
[1755766788288,62.53120317,186.09,186.08,0.03]
[1755766791273,20.89120317,186.09,186.08,0.03]
[1755766791581,62.53120317,186.09,186.08,0.03]
[1755766797016,20.89120317,186.09,186.08,0.03]
[1755766797310,62.53120317,186.09,186.08,0.03]
[1755766797972,58.04037767,186.09,186.08,0.03]
[1755766798178,61.83120317,186.09,186.08,0.03]
[1755766798386,60.4720648,186.09,186.08,0.03]
[1755766798885,61.1420648,186.09,186.08,0.03]
[1755766799085,60.4720648,186.09,186.08,0.03]
[1755766800010,61.1420648,186.09,186.08,0.03]
[1755766800208,58.71037767,186.09,186.08,0.03]
[1755766800411,60.4720648,186.09,186.08,0.03]
[1755766800709,61.1420648,186.09,186.08,0.03]
[1755766800911,60.4720648,186.09,186.08,0.03]
[1755766801417,61.1420648,186.09,186.08,0.03]
[1755766801716,60.4720648,186.09,186.08,0.03]
[1755766801886,61.1420648,186.09,186.08,0.03]
[1755766802200,60.4720648,186.09,186.08,0.03]
[1755766802404,16.40037767,186.09,186.08,0.03]
[1755766802610,60.4720648,186.09,186.08,0.03]
[1755766802992,61.1420648,186.09,186.08,0.03]
[1755766803507,60.4720648,186.09,186.08,0.03]
[1755766803707,60.4720648,186.09,186.08,0.13]
[1755766803909,60.4720648,186.09,186.08,0.03]
[1755766804605,61.1420648,186.09,186.08,0.03]
[1755766804980,58.33728114,186.09,186.08,0.03]
[1755766805612,55.90559401,186.09,186.08,0.03]
[1755766805817,58.33728114,186.09,186.08,0.03]
[1755766806016,55.90559401,186.09,186.08,0.03]
[1755766806314,58.33728114,186.09,186.08,0.03]
[1755766806910,16.69728114,186.09,186.08,0.03]
[1755766807109,58.31728114,186.09,186.08,0.03]
[1755766810655,57.64728114,186.09,186.08,0.03]
[1755766811146,58.31728114,186.09,186.08,0.03]
[1755766811722,16.75728114,186.09,186.08,0.03]
[1755766812231,58.37728114,186.09,186.08,0.03]
[1755766812739,55.94559401,186.09,186.08,0.03]
[1755766812921,58.37728114,186.09,186.08,0.03]
[1755766813729,58.66160428,186.09,186.08,0.03]
[1755766813930,88.24370704,186.09,186.08,0.03]
[1755766815418,85.81201991,186.09,186.08,0.03]
[1755766815727,88.24370704,186.09,186.08,0.03]
[1755766815926,46.62370704,186.09,186.08,0.03]
[1755766816237,84.66160428,186.09,186.08,0.03]
[1755766817231,62.24399291,186.09,186.08,0.03]
[1755766819023,46.62399291,186.09,186.08,0.03]
[1755766819245,58.66160428,186.09,186.08,0.03]
[1755766819619,57.70728114,186.09,186.08,0.03]
[1755766820032,55.27559401,186.09,186.08,0.03]
[1755766820233,57.70728114,186.09,186.08,0.03]
[1755766820837,55.27559401,186.09,186.08,0.03]
[1755766821037,57.70728114,186.09,186.08,0.03]
[1755766821227,55.27559401,186.09,186.08,0.03]
[1755766821437,57.70728114,186.09,186.08,0.03]
[1755766822636,57.70728114,186.09,186.08,0.13]
[1755766822836,55.27559401,186.09,186.08,0.13]
[1755766823133,0.06,186.09,186.08,2.56168713]
[1755766823646,41.68,186.09,186.08,2.56168713]
[1755766824418,41.68,186.09,186.08,3.92656966]
[1755766824840,41.68,186.09,186.08,0.03]
[1755766825857,59.78216367,186.09,186.08,0.03]
[1755766826727,59.07216367,186.09,186.08,0.03]
[1755766827339,59.78216367,186.09,186.08,0.03]
[1755766827752,55.27559401,186.09,186.08,0.03]
[1755766827956,59.07216367,186.09,186.08,0.03]
[1755766828838,59.78216367,186.09,186.08,0.03]
[1755766829244,59.07216367,186.09,186.08,0.03]
[1755766829831,59.78216367,186.09,186.08,0.03]
[1755766830360,59.07216367,186.09,186.08,0.03]
[1755766830926,55.27559401,186.09,186.08,0.03]
[1755766831243,59.07216367,186.09,186.08,0.03]
[1755766831652,59.78216367,186.09,186.08,0.03]
[1755766833245,55.27559401,186.09,186.08,0.03]
[1755766833537,59.78216367,186.09,186.08,0.03]
[1755766833750,62.58665712,186.09,186.08,0.03]
[1755766834066,88.58665712,186.09,186.08,0.03]
[1755766834258,88.87098026,186.09,186.08,0.03]
[1755766834452,39.87991715,186.07,186.06,0.03]
[1755766834650,85.27648681,186.07,186.06,0.03]
[1755766834955,85.98648681,186.07,186.06,0.03]
[1755766841471,82.18991715,186.07,186.06,0.03]
[1755766841655,85.98648681,186.07,186.06,0.03]
[1755766841865,39.87991715,186.04,186.03,27.465]
[1755766842060,13.59559401,186.03,185.98,0.72]
[1755766842254,3.79656966,185.99,185.98,0.72]
[1755766842576,45.39656966,185.99,185.88,0.14216157]
[1755766842748,3.79656966,185.97,185.92,3.79656966]
[1755766843072,41.6,185.96,185.93,0.72]
[1755766844260,45.39656966,185.96,185.94,0.72]
[1755766844640,3.79656966,185.95,185.94,0.72]
[1755766845040,4.50656966,185.95,185.89,0.72]
[1755766845241,3.79656966,185.93,185.9,0.72]
[1755766845466,41.62,185.92,185.9,0.72]
[1755766845977,41.62,185.92,185.91,3.79656966]
[1755766846150,41.62,185.92,185.91,0.72]
[1755766847238,41.62,185.92,185.88,0.28432314]
[1755766847456,41.62,185.92,185.9,3.79656966]
[1755766847846,41.62,185.92,185.91,0.72]
[1755766849447,41.62,185.92,185.89,0.72]
[1755766849967,41.62,185.92,185.9,0.72]
[1755766850851,45.41656966,185.92,185.88,0.72]
[1755766851051,45.41656966,185.92,185.87,26.60290191]
[1755766851250,46.12656966,185.92,185.87,31.11947157]
[1755766851451,41.62,185.92,185.88,0.72]
[1755766851646,45.41656966,185.92,185.88,0.72]
[1755766852069,46.12656966,185.92,185.87,26.60290191]
[1755766852355,45.41656966,185.92,185.88,0.72]
[1755766852569,45.41656966,185.92,185.87,0.60290191]
[1755766852570,46.12656966,185.92,185.87,0.60290191]
[1755766852758,3.79656966,185.9,185.87,0.60290191]
[1755766852959,41.64,185.89,185.87,0.60290191]
[1755766853158,41.64,185.89,185.88,0.68]
[1755766853376,41.64,185.89,185.87,0.60290191]
[1755766853574,41.64,185.89,185.88,0.68]
[1755766855166,41.64,185.89,185.87,0.60290191]
[1755766855886,42.34,185.89,185.87,0.60290191]
[1755766856256,0.7,185.88,185.87,0.60290191]
[1755766856753,41.64,185.89,185.87,0.60290191]
[1755766856985,46.13656966,185.89,185.87,0.60290191]
[1755766857371,42.34,185.89,185.87,0.60290191]
[1755766857558,46.13656966,185.89,185.87,0.60290191]
[1755766857980,41.64,185.88,185.87,1.28290191]
[1755766858359,41.64,185.88,185.87,0.60290191]
[1755766859161,41.64,185.88,185.87,1.28290191]
[1755766859484,41.64,185.88,185.87,0.60290191]
[1755766860292,41.64,185.88,185.87,5.10947157]
[1755766860470,41.64,185.88,185.87,4.42947157]
[1755766860667,2.80689325,185.94,185.87,1.31290191]
[1755766860970,41.64,185.93,185.9,3.79656966]
[1755766861181,42.34,185.92,185.87,0.63290191]
[1755766861371,46.13656966,185.92,185.87,0.63290191]
[1755766861568,41.64,185.92,185.88,3.79656966]
[1755766861768,42.34,185.92,185.88,3.79656966]
[1755766862082,41.64,185.92,185.89,3.79656966]
[1755766862282,3.50659603,185.94,185.91,3.79656966]
[1755766862496,13.59559401,185.98,185.91,3.79656966]
[1755766862497,41.68,185.93,185.91,3.79656966]
[1755766863676,0.7,185.97,185.92,4.47656966]
[1755766863990,46.17656966,185.96,185.89,0.96432314]
[1755766864171,45.47656966,185.96,185.91,3.79656966]
[1755766864374,0.7,185.95,185.91,3.79656966]
[1755766864578,41.68,185.96,185.93,3.79656966]
[1755766864981,3.79656966,185.94,185.89,3.79656966]
[1755766865200,41.7,185.93,185.9,3.79656966]
[1755766865365,42.4,185.93,185.9,3.79656966]
[1755766865573,0.7,185.92,185.89,3.79656966]
[1755766865771,4.49656966,185.92,185.87,0.63290191]
[1755766865987,41.7,185.93,185.87,0.63290191]
[1755766865988,0.7,185.91,185.87,0.63290191]
[1755766866175,41.7,185.9,185.87,0.63290191]
[1755766866378,42.4,185.9,185.87,0.63290191]
[1755766866698,41.7,185.9,185.87,4.42947157]
[1755766866867,0.7,185.89,185.87,0.63290191]
[1755766867197,0.7,185.88,185.87,0.63290191]
[1755766868173,4.49656966,185.88,185.87,0.63290191]
[1755766869687,0.7,185.88,185.87,0.63290191]
[1755766869890,4.49656966,185.88,185.87,0.63290191]
[1755766870279,14.29559401,185.88,185.87,0.63290191]
[1755766870479,18.09216367,185.88,185.87,0.63290191]
[1755766870893,42.44,185.88,185.87,0.63290191]
[1755766871297,41.74,185.88,185.87,0.63290191]
[1755766873101,41.74,185.88,185.84,4.24854123]
[1755766873680,41.74,185.88,185.84,0.45197157]
[1755766873881,4.49656966,185.87,185.81,0.28432314]
[1755766874217,0.7,185.87,185.83,3.79656966]
[1755766874417,45.53656966,185.88,185.81,0.28432314]
[1755766874601,4.49656966,185.87,185.83,0.03]
[1755766875020,3.79656966,185.87,185.83,0.03]
[1755766875312,0.7,185.86,185.83,0.03]
[1755766875505,41.74,185.85,185.83,0.03]
[1755766876029,41.74,185.85,185.83,3.82656966]
[1755766877390,42.44,185.85,185.83,0.03]
[1755766878306,41.74,185.85,185.83,3.82656966]
[1755766878504,42.44,185.85,185.83,0.03]
[1755766881327,4.49656966,185.84,185.83,0.03]
[1755766881630,42.4,185.84,185.83,0.03]
[1755766881990,41.72,185.84,185.83,0.03]
[1755766882718,42.42,185.84,185.83,0.03]
[1755766883602,41.72,185.84,185.83,0.03]
[1755766883920,42.41,185.84,185.83,0.03]
[1755766885631,46.20656966,185.84,185.83,0.03]
[1755766886049,42.41,185.84,185.83,0.03]
[1755766887496,46.20656966,185.84,185.83,0.03]
[1755766887701,42.41,185.84,185.83,0.03]
[1755766887921,46.20656966,185.84,185.83,0.03]
[1755766888127,42.41,185.84,185.83,0.03]
[1755766888323,46.20656966,185.84,185.83,0.03]
[1755766888899,42.41,185.84,185.83,0.03]
[1755766889134,46.20656966,185.84,185.83,0.03]
[1755766889316,42.41,185.84,185.83,0.03]
[1755766889512,46.20656966,185.84,185.83,0.03]
[1755766890123,42.41,185.84,185.83,0.03]
[1755766890326,46.20656966,185.84,185.83,0.03]
[1755766891029,4.48656966,185.84,185.83,0.03]
[1755766891233,46.20656966,185.84,185.83,0.03]
[1755766897244,59.80216367,185.84,185.83,0.03]
[1755766899720,59.80216367,185.84,185.8,0.183]
[1755766899721,26.0,185.81,185.8,0.183]
[1755766899927,71.49656966,185.81,185.8,0.183]
[1755766900123,30.48656966,185.81,185.8,0.183]
[1755766900324,18.08216367,185.81,185.8,0.183]
[1755766900639,60.12648681,185.81,185.8,0.183]
[1755766900835,60.12648681,185.81,185.66,0.66]
[1755766900836,13.59559401,185.72,185.66,0.66]
[1755766901030,13.59559401,185.72,185.64,4.35083485]
[1755766901031,41.88,185.71,185.67,0.66]
[1755766901231,3.79656966,185.7,185.67,0.66]
[1755766901430,41.88,185.69,185.67,0.66]
[1755766901652,45.67656966,185.69,185.65,4.45656966]
[1755766901838,45.67656966,185.69,185.65,0.66]
[1755766902151,0.69,185.71,185.61,31.35580323]
[1755766902347,41.92,185.7,185.66,3.79656966]
[1755766902719,41.92,185.7,185.62,0.14216157]
[1755766902918,41.92,185.7,185.65,3.79656966]
[1755766902919,46.40656966,185.7,185.65,3.79656966]
[1755766903227,0.69,185.69,185.65,3.79656966]
[1755766903440,26.0,185.64,185.57,0.3]
[1755766903655,0.69,185.63,185.57,0.3]
[1755766903848,3.79656966,185.6,185.57,0.3]
[1755766904051,13.59559401,185.66,185.57,0.3]
[1755766904221,3.79656966,185.6,185.57,0.3]
[1755766904422,42.1,185.59,185.57,0.3]
[1755766904637,0.69,185.58,185.57,0.3]
[1755766905354,42.1,185.59,185.57,0.3]
[1755766905557,45.89656966,185.59,185.57,0.3]
[1755766905731,0.69,185.58,185.57,0.3]
[1755766906135,4.48656966,185.58,185.57,0.3]
[1755766909059,45.89656966,185.59,185.57,0.3]
[1755766909234,0.69,185.58,185.57,0.3]
[1755766909439,4.48656966,185.58,185.57,0.3]
[1755766909740,45.89656966,185.59,185.57,0.3]
[1755766909935,42.1,185.59,185.57,0.3]
[1755766910650,42.1,185.58,185.57,0.3]
[1755766911669,42.79,185.58,185.57,0.3]
[1755766912164,42.1,185.58,185.57,0.3]
[1755766913167,42.81,185.58,185.57,0.3]
[1755766913339,42.1,185.58,185.57,0.3]
[1755766913543,42.81,185.58,185.57,0.3]
[1755766913959,42.1,185.58,185.57,0.3]
[1755766914668,42.81,185.58,185.57,0.3]
[1755766915169,46.60656966,185.58,185.57,0.3]
[1755766915345,42.81,185.58,185.57,0.3]
[1755766915872,42.81,185.58,185.53,0.03]
[1755766915873,39.59559401,185.54,185.53,0.03]
[1755766916163,0.62,185.57,185.48,0.72]
[1755766916339,3.79656966,185.51,185.48,0.72]
[1755766916535,3.79656966,185.51,185.43,26.0]
[1755766916536,46.37656966,185.5,185.43,26.0]
[1755766916761,42.58,185.5,185.44,0.72]
[1755766917063,0.62,185.53,185.45,3.79656966]
[1755766917266,3.79656966,185.51,185.46,0.72]
[1755766917446,3.79656966,185.51,185.47,0.72]
[1755766917759,42.62,185.52,185.47,0.72]
[1755766917935,3.79656966,185.51,185.47,0.72]
[1755766918136,42.62,185.52,185.48,0.72]
[1755766918452,42.64,185.51,185.49,1.00432314]
[1755766918935,42.64,185.51,185.49,0.28432314]
[1755766919338,3.79656966,185.5,185.49,0.28432314]
[1755766919971,3.79656966,185.5,185.45,0.72]
[1755766920164,3.79656966,185.5,185.44,3.79656966]
[1755766920165,3.79656966,185.48,185.46,0.72]
[1755766920355,46.53656966,185.48,185.46,0.72]
[1755766920554,42.74,185.48,185.46,0.72]
[1755766921144,46.53656966,185.48,185.42,3.79656966]
[1755766921347,3.79656966,185.45,185.4,0.72]
[1755766921661,42.72,185.45,185.42,3.79656966]
[1755766921963,42.72,185.45,185.37,16.212273]
[1755766921964,42.72,185.45,185.43,0.72]
[1755766922469,42.72,185.45,185.43,3.93873123]
[1755766922644,42.72,185.45,185.44,4.65873123]
[1755766922842,42.72,185.45,185.44,4.8008928]
[1755766923344,42.72,185.45,185.44,0.72]
[1755766924363,46.51656966,185.45,185.41,0.72]
[1755766924676,42.72,185.45,185.42,0.72]
[1755766924872,42.72,185.45,185.43,0.72]
[1755766925062,42.72,185.45,185.41,0.72]
[1755766925241,46.51656966,185.45,185.39,0.72]
[1755766925444,42.72,185.45,185.4,3.79656966]
[1755766925647,43.34,185.45,185.41,3.79656966]
[1755766925860,0.62,185.44,185.38,0.82]
[1755766926143,42.72,185.45,185.38,0.82]
[1755766926337,42.72,185.45,185.42,3.79656966]
[1755766926539,43.34,185.45,185.41,3.79656966]
[1755766927046,43.34,185.45,185.42,3.79656966]
[1755766927860,43.34,185.45,185.41,3.79656966]
[1755766928155,3.58317686,185.33,185.23,4.40753907]
[1755766928355,3.58317686,185.33,185.24,3.796569]
[1755766928654,3.58317686,185.33,185.32,3.79656966]
[1755766928861,3.58317686,185.33,185.26,26.0]
[1755766929063,3.58317686,185.33,185.32,3.79656966]
[1755766929569,4.29317686,185.33,185.23,16.224548]
[1755766929765,3.58317686,185.33,185.32,3.79656966]
[1755766930351,3.58317686,185.33,185.28,0.72]
[1755766930672,4.29317686,185.33,185.28,0.72]
[1755766930972,3.58317686,185.33,185.29,0.72]
[1755766931172,3.58317686,185.33,185.26,0.14216157]
[1755766931360,3.58317686,185.33,185.3,0.72]
[1755766931685,3.58317686,185.33,185.22,3.79656966]
[1755766931686,0.71,185.32,185.22,3.79656966]
[1755766931888,43.87,185.32,185.26,3.79656966]
[1755766932047,0.71,185.31,185.27,3.79656966]
[1755766932446,43.16,185.32,185.28,3.79656966]
[1755766932646,43.16,185.32,185.28,4.51656966]
[1755766932952,47.66656966,185.32,185.28,3.79656966]
[1755766933149,4.50656966,185.31,185.25,0.72]
[1755766933349,0.71,185.31,185.26,3.79656966]
[1755766933554,3.79656966,185.31,185.26,3.79656966]
[1755766933769,0.71,185.3,185.24,0.72]
[1755766933944,4.50656966,185.3,185.25,3.79656966]
[1755766934153,43.16,185.32,185.23,0.82]
[1755766934154,0.71,185.29,185.23,0.82]
[1755766934467,0.71,185.29,185.26,3.79656966]
[1755766934853,0.71,185.29,185.23,0.82]
[1755766934854,0.71,185.28,185.24,3.79656966]
[1755766935188,13.59559401,185.3,185.23,0.1]
[1755766935189,0.71,185.31,185.23,0.1]
[1755766935367,3.79656966,185.3,185.25,4.51656966]
[1755766935552,4.50656966,185.3,185.25,3.79656966]
[1755766935745,0.71,185.32,185.24,0.28432314]
[1755766935946,43.93,185.32,185.28,3.79656966]
[1755766936143,43.22,185.32,185.3,3.79656966]
[1755766936348,43.93,185.32,185.25,0.72]
[1755766936548,43.22,185.32,185.31,3.79656966]
[1755766936749,3.58317686,185.33,185.29,0.72]
[1755766936980,3.58317686,185.33,185.32,3.79656966]
[1755766937191,3.58317686,185.33,185.32,4.51656966]
[1755766937349,3.58317686,185.33,185.32,4.8008928]
[1755766938647,43.26,185.44,185.35,0.28432314]
[1755766938886,0.71,185.42,185.37,3.79656966]
[1755766939086,0.71,185.42,185.38,3.79656966]
[1755766939292,0.71,185.41,185.38,3.79656966]
[1755766939457,43.26,185.44,185.39,3.79656966]
[1755766939458,47.76656966,185.44,185.39,3.79656966]
[1755766939657,43.97,185.44,185.4,3.79656966]
[1755766939859,43.97,185.44,185.39,0.72]
[1755766940180,43.97,185.44,185.41,3.79656966]
[1755766940386,0.71,185.43,185.4,6.23211919]
[1755766941062,43.26,185.44,185.41,6.23211919]
[1755766941273,43.26,185.44,185.42,6.23211919]
[1755766941471,43.26,185.44,185.43,6.23211919]
[1755766941774,2.87390781,185.47,185.43,6.95211919]
[1755766941775,0.06,185.47,185.43,6.95211919]
[1755766941968,0.06,185.47,185.4,0.72]
[1755766942172,0.06,185.49,185.48,26.0]
[1755766942373,0.06,185.49,185.47,6.23211919]
[1755766942778,0.06,185.49,185.48,6.23211919]
[1755766943565,0.06,185.49,185.48,6.92211919]
[1755766944163,0.06,185.49,185.48,6.23211919]
[1755766944895,0.06,185.49,185.48,6.92211919]
[1755766946455,0.06,185.49,185.48,0.97432314]
[1755766946659,0.06,185.49,185.48,7.20644233]
[1755766948960,0.68,185.6,185.5,26.0]
[1755766949160,49.49211919,185.61,185.5,32.23211919]
[1755766949356,0.68,185.59,185.5,32.92211919]
[1755766949581,0.68,185.59,185.5,33.20644233]
[1755766950190,0.68,185.59,185.52,0.28432314]
[1755766950562,0.68,185.59,185.58,6.23211919]
[1755766950790,43.26,185.61,185.58,6.23211919]
[1755766950969,0.68,185.61,185.6,6.23211919]
[1755766951176,0.68,185.63,185.6,6.23211919]
[1755766951468,0.68,185.63,185.62,6.23211919]
[1755766951873,0.68,185.65,185.62,6.23211919]
[1755766952200,0.2,185.66,185.63,6.23211919]
[1755766952495,0.2,185.66,185.64,6.23211919]
[1755766953184,0.2,185.66,185.65,6.23211919]
[1755766953579,0.2,185.66,185.65,6.92211919]
[1755766954091,0.2,185.66,185.65,7.20644233]
[1755766955390,0.06,185.69,185.68,26.28432314]
[1755766955570,0.06,185.69,185.68,38.74856152]
[1755766955771,0.06,185.69,185.68,39.43856152]
[1755766956962,0.68,185.79,185.68,39.43856152]
[1755766957191,0.68,185.79,185.76,6.23211919]
[1755766957692,6.23211919,185.77,185.7,26.69]
[1755766957900,0.68,185.76,185.72,6.23211919]
[1755766958095,46.06848062,185.82,185.73,6.23211919]
[1755766958096,0.68,185.75,185.73,6.23211919]
[1755766958395,46.06848062,185.82,185.7,26.69]
[1755766958568,0.68,185.75,185.66,26.69]
[1755766958894,6.91211919,185.75,185.7,6.23211919]
[1755766959190,13.59559401,185.81,185.72,6.23211919]
[1755766959390,0.68,185.77,185.74,6.23211919]
[1755766959595,0.68,185.77,185.7,0.69]
[1755766959596,0.68,185.76,185.72,6.23211919]
[1755766959794,0.68,185.75,185.68,26.14216157]
[1755766959975,0.68,185.75,185.72,6.23211919]
[1755766960170,0.68,185.75,185.68,0.14216157]
[1755766960366,0.68,185.75,185.68,0.28432314]
[1755766960581,6.23211919,185.74,185.65,0.69]
[1755766960775,0.68,185.73,185.69,6.23211919]
[1755766960988,46.06848062,185.82,185.71,6.23211919]
[1755766960989,0.68,185.75,185.71,6.23211919]
[1755766961198,0.68,185.74,185.71,6.23211919]
[1755766961372,0.68,185.73,185.71,6.23211919]
[1755766961566,0.68,185.72,185.65,0.28432314]
[1755766961770,0.68,185.72,185.7,6.23211919]
[1755766961970,6.23211919,185.76,185.7,6.23211919]
[1755766962196,0.68,185.75,185.71,6.23211919]
[1755766962497,0.68,185.74,185.66,0.69]
[1755766962797,0.68,185.74,185.7,6.23211919]
[1755766962982,6.23211919,185.76,185.7,6.23211919]
[1755766963182,0.74,185.73,185.7,6.23211919]
[1755766963385,0.74,185.73,185.69,6.23211919]
[1755766963386,0.68,185.72,185.69,6.23211919]
[1755766963587,0.68,185.71,185.64,13.595594]
[1755766963771,0.68,185.71,185.66,6.23211919]
[1755766963980,0.68,185.7,185.66,6.23211919]
[1755766964192,0.68,185.69,185.66,6.23211919]
[1755766964871,0.68,185.69,185.63,0.69]
[1755766965071,0.68,185.69,185.62,26.14216157]
[1755766965271,0.68,185.69,185.61,32.922119]
[1755766965475,6.23211919,185.66,185.54,13.59559401]
[1755766965684,6.23211919,185.62,185.54,0.69]
[1755766965899,0.68,185.63,185.57,6.23211919]
[1755766966095,6.91211919,185.63,185.58,6.23211919]
[1755766966299,0.68,185.62,185.57,6.23211919]
[1755766966507,0.68,185.62,185.58,6.23211919]
[1755766966987,0.68,185.62,185.57,6.92211919]
[1755766967314,6.23211919,185.6,185.55,6.23211919]
[1755766967486,6.91211919,185.61,185.56,6.23211919]
[1755766967691,6.23211919,185.61,185.56,6.23211919]
[1755766967879,6.23211919,185.57,185.51,6.26211919]
[1755766968079,6.23211919,185.56,185.51,6.26211919]
[1755766968310,0.68,185.56,185.51,6.26211919]
[1755766968704,0.68,185.56,185.52,6.23211919]
[1755766969478,0.68,185.56,185.51,0.03]
[1755766969787,0.68,185.56,185.52,6.23211919]
[1755766970185,0.68,185.56,185.51,0.03]
[1755766970399,0.68,185.56,185.53,6.23211919]
[1755766970829,0.68,185.56,185.52,6.23211919]
[1755766971013,6.23211919,185.59,185.53,6.23211919]
[1755766971226,6.91211919,185.6,185.54,6.23211919]
[1755766971518,6.91211919,185.6,185.53,0.69]
[1755766971693,0.68,185.59,185.51,0.03]
[1755766971891,6.91211919,185.59,185.53,6.23211919]
[1755766972298,0.68,185.59,185.53,6.23211919]
[1755766972500,6.91211919,185.59,185.53,6.23211919]
[1755766973294,0.68,185.59,185.52,6.23211919]
[1755766973486,6.91211919,185.59,185.51,0.72]
[1755766973718,6.91211919,185.59,185.53,6.23211919]
[1755766974734,6.91211919,185.59,185.51,0.72]
[1755766974883,6.91211919,185.59,185.53,6.23211919]
[1755766975088,6.23211919,185.58,185.52,6.23211919]
[1755766975592,6.23211919,185.58,185.53,6.23211919]
[1755766975795,0.71,185.57,185.53,6.23211919]
[1755766975997,0.71,185.56,185.52,6.23211919]
[1755766976393,0.71,185.56,185.51,6.26211919]
[1755766976394,6.23211919,185.56,185.51,6.26211919]
[1755766976716,0.71,185.58,185.52,6.94211919]
[1755766977016,6.94211919,185.58,185.52,0.71]
[1755766978227,6.23211919,185.55,185.51,0.03]
[1755766978430,6.23211919,185.54,185.51,0.03]
[1755766978722,0.71,185.53,185.51,0.03]
[1755766979430,13.59559401,185.59,185.51,0.03]
[1755766979431,0.71,185.56,185.51,0.03]
[1755766979638,6.23211919,185.55,185.51,0.03]
[1755766979840,6.94211919,185.55,185.51,0.03]
[1755766980005,6.94211919,185.54,185.51,0.03]
[1755766980318,0.71,185.54,185.51,0.03]
[1755766980727,6.23211919,185.55,185.51,0.03]
[1755766981037,0.71,185.54,185.51,0.03]
[1755766982438,6.23211919,185.54,185.51,0.03]